Cogmind - Beta 17.1 @@@ ROGUE MODE // 2026.09.23 @ 22:54:31 Player: Kotyk77 Result: Destroyed by D-53 Grenadier with Mini Grenade Launcher Performance ------------- Evolutions (4) 2000 Regions Visited (10) 2000 Robots Destroyed (219) 1095 Value Destroyed (8881) 8881 Prototype IDs (8) 160 Alien Tech Used (0) 0 Bonus (3400) 3400 TOTAL SCORE: 17536 Bonus ------- High Alert Combat Kills 941 Follower Combat Kills 359 Entered Garrisons 600 Used RIF Installer 1500 Cogmind --------- Core Integrity 0/850 Matter 300/300 Energy 100/100 System Corruption 11% Temperature Cool (0) Movement Core (50) Location -6/Factory Parts ------- > --- POWER (1) -------- (None) > --- PROPULSION (4) --- (None) > --- UTILITY (7) ------ Enhanced Optical Array Advanced Terrain Scan Processor Relay Coupler [Specialist] (26) > --- WEAPON (3) ------- Heavy Mace > --- INVENTORY (5) ---- Carbon-fiber Leg Advanced Heat Sink Relay Coupler [Duelist] (25) Relay Coupler [Specialist] (26) Relay Coupler [Hunter] (18) Peak State ------------ > --- POWER ------------ Particle Reactor > --- PROPULSION ------- Carbon-fiber Leg Carbon-fiber Leg Carbon-fiber Leg Carbon-fiber Leg > --- UTILITY ---------- High-capacity Storage Unit Enhanced Optical Array Core Analyzer Improved Light Armor Plating Hacking Suite Relay Coupler [Brawler] Relay Coupler [Specialist] > --- WEAPON ----------- KE Penetrator KE Penetrator Railgun > --- INVENTORY -------- Light Treads Carbon-fiber Leg Carbon-fiber Leg Armored Leg Advanced Heat Sink Advanced Heat Sink Huge Storage Unit Advanced Terrain Scan Processor Phase Shifter Improved Medium Armor Plating Relay Coupler [Sentry] Relay Coupler [Demolisher] Relay Coupler [Specialist] Relay Coupler [Hunter] Heavy Plasma Cannon Long-range Missile Launcher Mace Heavy Mace [Rating: 70] Favorites ----------- Power Light Nuclear Core Engine Improved Ion Engine Power Core Light Nuclear Core Reactor Particle Reactor Propulsion Light Treads Treads Light Treads Leg Aluminum Leg Wheel Wheel Flight Unit Improved Flight Unit Utility High-capacity Storage Unit Device Transmission Jammer Storage High-capacity Storage Unit Processor Core Analyzer Hackware Relay Coupler [Specialist] Protection Improved Light Armor Plating Weapon Autogun Energy Gun Particle Gun Energy Cannon Heavy Plasma Cannon Ballistic Gun Autogun Ballistic Cannon Mini Assault Cannon Launcher Long-range Missile Launcher Special Weapon Remote Datajack Impact Weapon Heavy Mace Slashing Weapon Axe Build | -11 -10 -9 -8 -7 -7 -7 -7 -6 -6 -6 ------- Run | Yrd Mat Mat Mat Fac Gar Fac Gar Fac Gar Fac Slots Evolved 8 | . . 2 2 2 . . . 2 . . Power . | . . . . . . . . . . . Propulsion 2 | . . . 1 1 . . . . . . Utility 5 | . . 1 1 1 . . . 2 . . Weapon 1 | . . 1 . . . . . . . . Parts Attached 181 | 7 9 19 25 11 21 17 16 25 20 11 Power 23 | 1 2 4 3 . 3 1 2 3 2 2 Engine 13 | 1 2 3 2 . . . 1 2 1 1 Core 7 | . . 1 1 . 3 1 1 . . . Reactor 3 | . . . . . . . . 1 1 1 Propulsion 57 | 2 3 5 8 3 7 6 3 8 6 6 Treads 33 | . 2 4 8 3 2 4 3 4 3 . Leg 20 | . . . . . 5 2 . 4 3 6 Wheel 3 | 2 1 . . . . . . . . . Hover . | . . . . . . . . . . . Flight 1 | . . 1 . . . . . . . . Utility 48 | 2 2 2 9 2 6 4 8 6 4 3 Device 7 | 1 . . . . 1 . 2 1 . 2 Storage 5 | 1 1 1 1 . . . . 1 . . Processor 11 | . 1 . 3 2 2 . 1 1 . 1 Hackware 12 | . . . . . 1 2 4 3 2 . Protection 13 | . . 1 5 . 2 2 1 . 2 . Artifact . | . . . . . . . . . . . Weapon 53 | 2 2 8 5 6 5 6 3 8 8 . Energy Gun 1 | . . . . . 1 . . . . . Energy Cannon 1 | . . . . . . . . . 1 . Ballistic Gun 37 | 2 1 8 4 5 2 2 . 8 5 . Ballistic Cannon 4 | . . . . . 1 2 1 . . . Launcher 3 | . . . . . 1 . 1 . 1 . Special Weapon 3 | . 1 . . . . 2 . . . . Impact Weapon 2 | . . . . 1 . . . . 1 . Slashing Weapon 2 | . . . 1 . . . 1 . . . Piercing Weapon . | . . . . . . . . . . . Special Melee Weapon . | . . . . . . . . . . . Unidentified Prototypes 2 | . . 1 . . . . . 1 . . Parts Lost 60 | . . 1 5 . 10 . 3 18 9 14 Power 11 | . . . 1 . 2 . 2 3 2 1 Propulsion 22 | . . . 1 . 3 . . 6 5 7 Utility 17 | . . 1 3 . 4 . 1 4 1 3 Weapon 10 | . . . . . 1 . . 5 1 3 Highest Loss Streak 11 | . . 1 2 . 3 . 2 5 4 11 To Critical Strikes . | . . . . . . . . . . . Average Backups 18 | 3 9 16 19 19 19 19 19 18 18 19 Power . | . 1 1 . 1 1 1 . . . . Propulsion 2 | 1 2 4 5 2 2 1 1 1 3 3 Utility 10 | . 3 6 7 10 9 14 13 12 9 13 Weapon 4 | . 2 4 5 4 5 3 3 4 4 2 Tool/Special . | . . . . . . . . . . . Unused Backups 55 | . 2 9 10 4 1 3 5 1 8 12 Power 3 | . . 1 1 . . . . . 1 . Propulsion 11 | . 1 2 6 . . 1 . . 1 . Utility 29 | . . 4 1 4 1 1 3 1 2 12 Weapon 12 | . 1 2 2 . . 1 2 . 4 . Tool/Special . | . . . . . . . . . . . Average Slot Usage (%) 98 | . 100 99 99 99 99 99 98 93 95 95 Engine 4 | . 14 8 7 7 . . 3 4 4 . Core 2 | . . 2 1 . 6 7 3 . . . Treads 20 | . 11 21 27 30 19 7 29 18 16 . Leg 6 | . . . . . 10 22 . 6 6 24 Device 2 | . 7 4 . . 1 . 6 3 . 4 Storage 7 | . 14 11 9 7 7 7 7 6 6 5 Processor 13 | . 6 11 15 22 20 11 7 11 13 13 Hackware 7 | . . . . . 1 15 4 19 19 18 Protection 5 | . . 6 10 7 6 2 9 1 5 . Ballistic Gun 15 | . 26 32 25 19 19 7 . 7 10 11 Ballistic Cannon 2 | . . . . . . 4 15 3 . . Special Weapon 1 | . 1 . . . . 6 4 3 2 . Impact Weapon 1 | . . . . 2 2 2 2 3 1 6 Peak Build Rating 70 | 9 10 19 23 34 39 51 53 60 70 68 Average Rating 36 | 5 8 15 20 32 33 39 50 53 56 61 On Entrance 29 | . 9 9 18 23 34 30 48 47 44 62 Avg Prop Armor Cover (%) 6 | . . . . . . . . 6 9 . Naked Turns . | . . . . . . . . . . . Heaviest Build 80 | 13 27 57 60 61 64 60 80 69 77 72 Greatest Support 112 | 26 40 43 63 83 80 112 112 104 96 65 Greatest Overweight (x) 18 | . . 1 . . 1 1 . 3 4 18 Average Overweight (x) . | . . . . . . . . . . . Largest Inventory Capacity 25 | 8 15 20 20 20 20 20 20 25 20 20 Average Capacity 19 | 6 11 16 20 20 20 20 20 20 20 19 Most Carried 20 | 5 15 20 20 20 20 20 20 20 20 20 Average Carried 18 | 3 9 16 19 19 19 19 19 18 18 19 Final Capacity 20 | 8 15 20 20 20 20 20 20 20 20 5 Final Carried 20 | 5 15 20 18 20 20 20 20 16 20 5 Class Distribution -------------------- 21% | Scavenger-Gunner 20% | Bothacker-Mutant 16% | Bothacker-Gunner 12% | Scavenger-Tank 9% | Scavenger-Mutant 6% | Mutant 5% | Bothacker-Tank Dominant Class ---------------- Mutant | -10/Materials Scavenger-Tank | -9/Materials Scavenger-Gunner | -8/Materials Scavenger-Gunner | -7/Factory Scavenger-Gunner | -7/Garrison Bothacker-Gunner | -7/Factory Bothacker-Tank | -7/Garrison Bothacker-Mutant | -6/Factory Bothacker-Gunner | -6/Garrison Scavenger-Assassin | -6/Factory Resources | -11 -10 -9 -8 -7 -7 -7 -7 -6 -6 -6 ----------- Run | Yrd Mat Mat Mat Fac Gar Fac Gar Fac Gar Fac Matter Collected 8281 | 214 230 734 1489 346 1260 335 1392 1154 769 358 Remotely . | . . . . . . . . . . . Salvage Created 8765 | 15 324 1239 2095 388 1079 76 739 1486 962 362 Parts 472 | 3 14 83 118 24 58 6 38 76 42 10 Haulers Intercepted 12 | . 2 5 4 . . . . 1 . . Recyclers Shooed 4 | . . 1 1 . . . . 2 . . Parts Field Recycled . | . . . . . . . . . . . Retrieved Matter . | . . . . . . . . . . . Parts Self-Destructed . | . . . . . . . . . . . Prevented . | . . . . . . . . . . . Parts Restored . | . . . . . . . . . . . Kills | -11 -10 -9 -8 -7 -7 -7 -7 -6 -6 -6 ------- Run | Yrd Mat Mat Mat Fac Gar Fac Gar Fac Gar Fac Combat Hostiles Destroyed 180 | . 4 21 33 6 28 2 26 27 22 11 Guns 132 | . 4 21 33 6 20 1 . 24 14 9 Cannons 40 | . . . . . 3 1 26 3 5 2 AOE 8 | . . . . . 5 . . . 3 . Classes Destroyed 17 | 1 3 7 2 1 1 1 . . . 1 Worker 10 | . . 1 2 3 . 1 . 3 . . Builder 5 | . . 2 1 . . 1 . 1 . . Tunneler 3 | 1 . . 2 . . . . . . . Hauler 12 | . 2 5 4 . . . . 1 . . Recycler 5 | . 1 2 2 . . . . . . . Mechanic 1 | . . 1 . . . . . . . . Operator 1 | . . . 1 . . . . . . . Watcher 8 | . . 4 3 1 . . . . . . Swarmer 45 | . . 9 3 . 7 1 6 6 13 . Cutter 6 | . . . . . 3 . 3 . . . Grunt 80 | . 4 8 21 2 16 . 7 12 7 3 Brawler 3 | . . . 2 . 1 . . . . . Duelist 2 | . . 1 . . . . . 1 . . Sentry 27 | . . 3 7 1 . . 8 5 2 1 Hunter 2 | . . . . . . 1 . 1 . . Programmer 9 | . . . . 3 1 . 3 2 . . Assembled 7 | . . . . . . . . . . 7 Best Kill Streak 9 | 1 3 5 7 2 7 2 7 9 7 7 Combat Bots Only 7 | . 1 4 4 2 7 1 7 6 7 7 Max Kills in Single Turn 3 | 1 1 2 2 1 2 1 1 2 3 2 Gunslinging 1 | . . 1 1 . . . . . 1 1 Exploded 3 | . . . . . 2 . . . 3 . Melee . | . . . . . . . . . . . Uniques/NPCs Destroyed . | . . . . . . . . . . . Combat | -11 -10 -9 -8 -7 -7 -7 -7 -6 -6 -6 -------- Run | Yrd Mat Mat Mat Fac Gar Fac Gar Fac Gar Fac Hostile Shots Fired 1436 | . 25 78 148 59 177 90 245 308 165 141 Missed 468 | . 8 24 45 22 53 33 86 100 52 45 Hits 968 | . 17 54 103 37 124 57 159 208 113 96 Melee 43 | . . 5 2 . 14 . 8 4 . 10 Projectile 925 | . 17 49 101 37 110 57 151 204 113 86 AOE 26 | . . . . . 3 . . . . 23 Critical Strikes 37 | . 2 2 8 1 9 . 6 6 2 1 Part Disruptions 1 | . . . . . . . . . . 1 Damage Taken 13469 | . 219 694 1505 420 2029 629 1576 2974 1555 1868 Core 1494 | . 30 83 109 18 99 132 168 190 124 541 Absorbed by Shields 70 | . . . . . . . . . 70 . Redirected to Shielding 51 | . . . 51 . . . . . . . Regen/Repaired (Parts) 173 | . . . . . . . . 173 . . Core Remaining (%) 77 | 100 88 79 80 . . . 40 . . . Volleys Fired 652 | 2 36 85 125 25 65 38 90 94 60 32 Largest 3 | 2 2 3 3 3 3 2 3 3 3 2 Hottest 125 | 40 100 69 69 100 123 80 120 90 105 125 Shots Fired 1546 | 4 71 255 370 63 181 55 175 191 122 59 Gun 1252 | 4 70 255 370 60 172 23 . 153 93 52 Cannon 212 | . . . . . 4 11 148 16 26 7 Launcher 8 | . . . . . 5 . 2 . 1 . Special 74 | . 1 . . 3 . 21 25 22 2 . Kinetic 1422 | 4 70 255 370 60 167 34 148 169 93 52 Thermal 46 | . 1 . . 3 9 . . . 26 7 Explosive 8 | . . . . . 5 . 2 . 1 . Electromagnetic . | . . . . . . . . . . . Robot Hit Streak 24 | 3 8 17 19 24 9 4 13 21 11 17 Robot Miss Streak 6 | . 3 5 6 3 5 6 4 3 5 3 Penetration Max 2 | . . . . 1 1 . . 2 1 . Secondary Targets 32 | . . 5 6 1 6 . . 6 5 3 Max Gunslinging Chain 1 | . . 1 1 1 1 . . 1 1 1 Shots Hit Robots 966 | 3 46 153 250 45 97 28 98 131 67 48 Core Hits 424 | 2 16 69 93 15 49 7 45 73 31 24 Critical Kills 11 | . . 2 . 1 2 . . 2 3 1 Critical Parts Destroyed 8 | . . 3 . 1 2 . . 1 1 . Critical Strikes 23 | . . 5 . 2 4 1 3 3 4 1 Meltdown 1 | . . . . . . . . . 1 . Destroy 16 | . . 5 . 1 4 . . 3 2 1 Blast 4 | . . . . . . 1 3 . . . Smash 2 | . . . . 1 . . . . 1 . Melee Attacks 42 | . . . 1 4 7 1 17 . 10 2 Impact 34 | . . . . 4 7 1 10 . 10 2 Slashing 8 | . . . 1 . . . 7 . . . Piercing . | . . . . . . . . . . . Sneak Attacks 3 | . . . . 3 . . . . . . Combat Hostiles . | . . . . . . . . . . . Follow-up Attacks . | . . . . . . . . . . . Damage Inflicted 18468 | 23 380 1624 3889 1169 2229 310 2348 2992 2356 1148 Guns 13622 | 23 380 1624 3889 922 1923 97 . 2550 1317 897 Cannons 3584 | . . . . . 85 213 2314 351 430 191 Explosions 667 | . . . . . 221 . 34 86 326 . Melee 590 | . . . . 247 . . . . 283 60 Ramming 5 | . . . . . . . . 5 . . Kinetic 16515 | 23 380 1624 3889 922 1938 310 2314 2901 1317 897 Thermal 765 | . . . . . 70 . . 74 430 191 Explosive 581 | . . . . . 221 . 34 . 326 . Electromagnetic 12 | . . . . . . . . 12 . . Impact 590 | . . . . 247 . . . . 283 60 Slashing . | . . . . . . . . . . . Piercing . | . . . . . . . . . . . Highest Corruption 11 | . . . 1 1 2 3 5 . . 11 Average Corruption 2 | . . . 1 1 1 2 4 . . 11 Corruption Purged . | . . . . . . . . . . . Corruption Blocked . | . . . . . . . . . . . Effects 82 | . . . 2 5 20 15 38 . . 2 Message Errors 20 | . . . . 2 3 6 7 . . 2 Matter Fused 11 | . . . 1 . 2 1 7 . . . Heat Flow Errors 15 | . . . . . 4 4 7 . . . Energy Discharges 9 | . . . . 1 4 . 4 . . . Parts Rejected 2 | . . . . . 1 . 1 . . . Data Loss (minor) 10 | . . . . 1 2 2 5 . . . Data Loss (major) 7 | . . . 1 1 1 1 3 . . . Misfires 4 | . . . . . 1 1 2 . . . Alerts 2 | . . . . . . . 2 . . . Weapon Failures 2 | . . . . . 2 . . . . . Overload Shots . | . . . . . . . . . . . Overflow Damage 312 | . . . . 167 . . 3 . 142 . Projectiles 5 | . . . . . . . 3 . 2 . Explosions 83 | . . . . . . . . . 83 . Melee 224 | . . . . 167 . . . . 57 . Knockbacks 10 | . . . . 1 . . 6 2 1 . Impact 2 | . . . . 1 . . . . 1 . Kinetic 8 | . . . . . . . 6 2 . . Secondary . | . . . . . . . . . . . Self-Inflicted Damage 66 | . . . . . 40 . . . 26 . Shots 2 | . . . . . 1 . . . 1 . Rammed 1 | . . . . . . . . 1 . . Targets Rammed 2 | . . . . . . . . 2 . . Kicked 1 | . . . . . . . . 1 . . Crushed . | . . . . . . . . . . . Highest Temperature 307 | . 41 93 120 42 264 264 307 115 256 127 Average Temperature 58 | . 16 23 35 24 65 70 109 29 65 31 Received Heat Transfer 4012 | . 165 153 855 108 684 66 411 804 529 237 Effects 6 | . . . . . 3 . 3 . . . Interference 6 | . . . . . 3 . 3 . . . Siege Activations . | . . . . . . . . . . . Martial Activations . | . . . . . . . . . . . Shielding Activations . | . . . . . . . . . . . Robots Disrupted . | . . . . . . . . . . . Combat Hostiles . | . . . . . . . . . . . Robots Corrupted 2 | . . . . 1 . . . . 1 . Combat Hostiles 1 | . . . . . . . . . 1 . Parts Fried 5 | . . . . 4 . . 1 . . . Impact Corruptions 8 | . . . . 5 . . . . 3 . Robots Melted 1 | . . . . . . . . . 1 . Combat Hostiles 1 | . . . . . . . . . 1 . Parts Melted . | . . . . . . . . . . . Heat Transferred 1198 | . . . . . 148 . . 100 650 300 Parts Sabotaged . | . . . . . . . . . . . Parts Stolen . | . . . . . . . . . . . Parts Stripped . | . . . . . . . . . . . Power Chain Reactions . | . . . . . . . . . . . Alert | -11 -10 -9 -8 -7 -7 -7 -7 -6 -6 -6 ------- Run | Yrd Mat Mat Mat Fac Gar Fac Gar Fac Gar Fac Maximum Alert Level 4 | . . 1 1 . 3 2 3 3 4 2 Low Security (%) 40 | 100 100 98 68 100 20 14 12 . . . Level 1 24 | . . 1 31 . 23 83 28 40 . 10 Level 2 20 | . . . . . 34 1 13 50 51 89 Level 3 13 | . . . . . 21 . 45 8 48 . Level 4 . | . . . . . . . . . . . Level 5 . | . . . . . . . . . . . High Security . | . . . . . . . . . . . Max Security . | . . . . . . . . . . . Peak Influence 1144 | 5 64 260 319 133 776 407 1045 733 1144 600 Initial 600 | . . 13 109 133 15 407 114 548 468 600 Average 332 | 1 11 77 174 28 437 265 557 471 734 514 Influence Increases 6006 | 5 140 658 972 201 861 265 1051 935 796 122 Destroy 0b10 Robot/C 3700 | . 80 420 660 120 560 180 600 560 440 80 Destroy 0b10 Robot/NC 235 | 5 15 75 75 20 . 10 . 25 10 . Destroy Leader 630 | . 24 98 174 52 40 50 30 132 10 20 Allied During Kill 39 | . . . . . . 17 18 4 . . Successful Hack 89 | . 5 19 24 8 . 5 . . 12 16 Select Force Hacks 30 | . . 30 . . . . . . . . Disable Machine 180 | . . . 15 . . . 45 105 15 . Anti-Garrison Action 650 | . . . . . 200 . 200 . 250 . Destroy Structure 213 | . 1 1 9 1 31 3 53 49 59 6 Partial Spotted 15 | . . . 15 . . . . . . . Lose Combat Pursuer 225 | . 15 15 . . 30 . 105 60 . . Influence Decreases 5714 | 5 108 430 937 474 107 877 170 1311 321 974 Entered New Map 2000 | . . 19 151 162 7 369 50 497 201 544 Time Decay 2664 | 5 108 411 586 312 . 478 . 534 . 230 Lost Part 590 | . . . 50 . 100 . 30 180 90 140 Lost Ally 310 | . . . . . . 30 90 100 30 60 Purge Threat 150 | . . . 150 . . . . . . . Squads Dispatched 26 | . 3 2 6 3 . 3 . 9 . . Investigation 8 | . . 1 5 1 . 1 . . . . Extermination 7 | . . . . 2 . 2 . 3 . . Reinforcement 7 | . 3 1 1 . . . . 2 . . Assault . | . . . . . . . . . . . Garrison 4 | . . . . . . . . 4 . . Intercept . | . . . . . . . . . . . Searches Triggered . | . . . . . . . . . . . Construction Impeded . | . . . . . . . . . . . Haulers Reinforced 1 | . . . . . . . . 1 . . Active Scanning Responses . | . . . . . . . . . . . Cargo Convoy Interrupts . | . . . . . . . . . . . Stealth | -11 -10 -9 -8 -7 -7 -7 -7 -6 -6 -6 --------- Run | Yrd Mat Mat Mat Fac Gar Fac Gar Fac Gar Fac Distress Signals 10 | . 3 2 1 1 . . . 3 . . Communications Jammed 1 | . . . . . . . 1 . . . Distress Signals 1 | . . . . . . . 1 . . . Times Spotted 258 | . 6 33 42 11 31 12 41 38 22 22 Peak Tracking Total 7 | . 2 5 5 2 6 4 7 6 5 6 Tactical Retreats 10 | . 1 1 . . 2 . 3 3 . . Traps | -11 -10 -9 -8 -7 -7 -7 -7 -6 -6 -6 ------- Run | Yrd Mat Mat Mat Fac Gar Fac Gar Fac Gar Fac Traps Triggered 12 | . . 1 . . 4 1 1 . 5 . Indirectly . | . . . . . . . . . . . Trap Hack Attempts . | . . . . . . . . . . . Triggered . | . . . . . . . . . . . Disarmed . | . . . . . . . . . . . Reprogrammed . | . . . . . . . . . . . Reused . | . . . . . . . . . . . Traps Extracted . | . . . . . . . . . . . Installed . | . . . . . . . . . . . Triggered . | . . . . . . . . . . . Machines | -11 -10 -9 -8 -7 -7 -7 -7 -6 -6 -6 ---------- Run | Yrd Mat Mat Mat Fac Gar Fac Gar Fac Gar Fac Machines Disabled 23 | . . 1 1 . 2 . 7 7 5 . Max in Single Turn 6 | . . 1 1 . 1 . 1 6 1 . Garrison Relay 6 | . . . . . 2 . 2 . 2 . Phase Generator 1 | . . . . . . . . . 1 . Machines Repaired . | . . . . . . . . . . . Machines Dismantled . | . . . . . . . . . . . Machines Sabotaged . | . . . . . . . . . . . Overloaded Fab Kills . | . . . . . . . . . . . Hacking | -11 -10 -9 -8 -7 -7 -7 -7 -6 -6 -6 --------- Run | Yrd Mat Mat Mat Fac Gar Fac Gar Fac Gar Fac Machines Accessed 31 | . 6 8 7 2 . 3 . 2 1 2 Terminals 22 | . 6 5 6 1 . 2 . . 1 1 Fabricators 2 | . . . . . . . . 1 . 1 Repair Stations . | . . . . . . . . . . . Recycling Units 1 | . . 1 . . . . . . . . Scanalyzers 3 | . . 2 1 . . . . . . . Garrison Access 3 | . . . . 1 . 1 . 1 . . Total Hacks 69 | . 13 17 23 4 . 4 . 4 2 2 Successful 41 | . 2 11 17 2 . 3 . 3 1 2 Failed 27 | . 11 5 6 2 . 1 . 1 1 . Catastrophic . | . . . . . . . . . . . Database Lockouts 1 | . . 1 . . . . . . . . Manual 39 | . 10 9 13 3 . 1 . 2 . 1 Terminals 52 | . 13 10 20 3 . 3 . . 2 1 Fabricators 3 | . . . . . . . . 2 . 1 Repair Stations . | . . . . . . . . . . . Recycling Units 1 | . . 1 . . . . . . . . Scanalyzers 9 | . . 6 3 . . . . . . . Garrison Access 4 | . . . . 1 . 1 . 2 . . Terminal Hacks 15 | . 1 3 8 . . 1 . . 1 1 Record 1 | . . . 1 . . . . . . . Part Schematic 1 | . . 1 . . . . . . . . Robot Analysis 3 | . . 1 2 . . . . . . . Prototype ID Bank 2 | . . . 1 . . 1 . . . . Level Access Points 2 | . . 1 . . . . . . . 1 Branch Access Points 1 | . . . 1 . . . . . . . Terminal Index 2 | . 1 . 1 . . . . . . . Scanalyzer Index 1 | . . . 1 . . . . . . . Unreport Threat 1 | . . . 1 . . . . . . . Patrol Navigation 1 | . . . . . . . . . 1 . Fabricator Hacks . | . . . . . . . . . . . Repair Station Hacks . | . . . . . . . . . . . Recycling Unit Hacks . | . . . . . . . . . . . Scanalyzer 7 | . . 4 3 . . . . . . . Insert Component 2 | . . 1 1 . . . . . . . Analyze 1 | . . 1 . . . . . . . . Retrieve Study 4 | . . 2 2 . . . . . . . Garrison Access Hacks 4 | . . . . 1 . 1 . 2 . . Unlock Access 3 | . . . . 1 . 1 . 1 . . Coupler Status 1 | . . . . . . . . 1 . . Unauthorized Hacks 15 | . 1 4 6 1 . 1 . 1 . 1 Terminals 12 | . 1 3 6 1 . 1 . . . . Botnet 12 | . 1 3 6 1 . 1 . . . . Fabricators 2 | . . . . . . . . 1 . 1 Liberate 2 | . . . . . . . . 1 . 1 Repair Stations . | . . . . . . . . . . . Recycling Units 1 | . . 1 . . . . . . . . Tunnel 1 | . . 1 . . . . . . . . Scanalyzers . | . . . . . . . . . . . Garrison Access . | . . . . . . . . . . . Data Cores Recovered 1 | . . . 1 . . . . . . . Used . | . . . . . . . . . . . Hacking Detections 26 | . 6 6 7 1 . 2 . 1 1 2 Full Trace Events 10 | . 2 2 5 1 . . . . . . Feedback Events . | . . . . . . . . . . . Feedback Blocked . | . . . . . . . . . . . Robot Schematics Acquired . | . . . . . . . . . . . Robots Built . | . . . . . . . . . . . Authchips . | . . . . . . . . . . . Time . | . . . . . . . . . . . Total Robot Build Rating . | . . . . . . . . . . . Part Schematics Acquired 2 | . . 2 . . . . . . . . Parts Built . | . . . . . . . . . . . Authchips . | . . . . . . . . . . . Time . | . . . . . . . . . . . Total Part Build Rating . | . . . . . . . . . . . Part Studies Acquired 4 | . . 2 2 . . . . . . . Parts Repaired . | . . . . . . . . . . . Time . | . . . . . . . . . . . Parts Recycled . | . . . . . . . . . . . Recycled Matter . | . . . . . . . . . . . Retrieved Matter . | . . . . . . . . . . . Retrieved Components . | . . . . . . . . . . . Parts Scanalyzed 1 | . . 1 . . . . . . . . Part Schematics Acquired 1 | . . 1 . . . . . . . . Parts Damaged . | . . . . . . . . . . . Bothacking | -11 -10 -9 -8 -7 -7 -7 -7 -6 -6 -6 ------------ Run | Yrd Mat Mat Mat Fac Gar Fac Gar Fac Gar Fac Used RIF Installer 3 | . . . . . 1 . 1 . 1 . Hotswap 1 | . . . . . . . 1 . . . Patrol Navigation 1 | . . . . . . . . . 1 . Robots Hacked 25 | . . . . . . 7 7 10 1 . Non-combat 15 | . . . . . . 4 1 10 . . Combat 10 | . . . . . . 3 6 . 1 . Robot Hacks Applied 32 | . . . . . . 11 8 12 1 . parse_system 4 | . . . . . . 1 2 1 . . find_chute 1 | . . . . . . . . 1 . . deconstruct_machine 1 | . . . . . . . . 1 . . map_walls 1 | . . . . . . 1 . . . . drop_inventory 2 | . . . . . . 1 . 1 . . ignore_parts 1 | . . . . . . 1 . . . . mark_security 1 | . . . . . . . . 1 . . find_garrison 1 | . . . . . . 1 . . . . link_fov 1 | . . . . . . . . 1 . . spike_heat 1 | . . . . . . 1 . . . . overwrite_iff 1 | . . . . . . 1 . . . . formatsys_low 7 | . . . . . . 2 1 4 . . formatsys_high 10 | . . . . . . 2 5 2 1 . Relay Couplers Released 24 | . . . . . 8 . 6 . 10 . Machine Destruction 24 | . . . . . 8 . 6 . 10 . Attached 10 | . . . . . 1 2 4 1 2 . Fabnet Peak Effective % . | . . . . . . . . . . . Robots Rewired 2 | . . . . . . . 2 . . . Allies Hacked . | . . . . . . . . . . . Hacks Repelled . | . . . . . . . . . . . Allies | -11 -10 -9 -8 -7 -7 -7 -7 -6 -6 -6 -------- Run | Yrd Mat Mat Mat Fac Gar Fac Gar Fac Gar Fac Total Allies 25 | . . . . . . 4 8 9 1 3 Largest Group 6 | . . . . . . 3 3 6 1 3 Highest-Rated Group 171 | . . . . . . 58 84 171 20 87 Highest-Rated Ally 40 | . . . . . . 32 40 40 20 29 Total Orders 9 | . . . . . . . 2 6 1 . STAY 5 | . . . . . . . 1 3 1 . ROAM 1 | . . . . . . . . 1 . . FOLLOW 2 | . . . . . . . 1 1 . . AID 1 | . . . . . . . . 1 . . Ally Attacks 70 | . . . . . . 22 18 14 . 16 Total Damage 1196 | . . . . . . 512 322 213 . 149 Kills 17 | . . . . . . 7 4 1 . 5 Allies Corrupted 1 | . . . . . . . . . . 1 Allies Melted . | . . . . . . . . . . . Intel | -11 -10 -9 -8 -7 -7 -7 -7 -6 -6 -6 ------- Run | Yrd Mat Mat Mat Fac Gar Fac Gar Fac Gar Fac Active Infowar (turns) 7375 | 21 349 541 634 1081 421 . 1122 1511 1206 489 Optics 2839 | . . . . . . . . 1144 1206 489 Terrain 1280 | 21 349 541 . . . . . . . 369 T.N.C. 1879 | . . . 378 1080 421 . . . . . Machine Analysis 1477 | . . . 256 1081 140 . . . . . Jamming 1670 | . . . . . . . 1122 548 . . Robot Analysis Total 3 | . . 1 2 . . . . . . . Derelict Logs Recovered . | . . . . . . . . . . . Drone Launches . | . . . . . . . . . . . Drone Recoveries . | . . . . . . . . . . . Exploration | -11 -10 -9 -8 -7 -7 -7 -7 -6 -6 -6 ------------- Run | Yrd Mat Mat Mat Fac Gar Fac Gar Fac Gar Fac Turns Passed 12355 | 66 679 1292 1829 1081 1526 1234 1442 1511 1206 489 Spaces Moved 5890 | 51 489 564 832 589 695 606 631 677 518 238 Core 10 | 1 . . . . . . . . . 9 Treads 4245 | . 147 564 832 589 437 183 631 490 372 . Legs 1243 | . . . . . 258 423 . 187 146 229 Wheels 392 | 50 342 . . . . . . . . . Hover . | . . . . . . . . . . . Flight . | . . . . . . . . . . . Fastest Speed 50 | 50 80 160 160 160 162 160 160 120 160 50 Average Speed 161 | 89 107 176 160 161 172 182 160 159 173 154 Slowest Speed 950 | 100 160 240 160 162 190 240 160 330 400 950 Overloaded Moves . | . . . . . . . . . . . Propulsion Burnouts . | . . . . . . . . . . . Robots Hopped . | . . . . . . . . . . . Potential Cave-ins . | . . . . . . . . . . . Cave-ins Triggered . | . . . . . . . . . . . Exploration Rate (%) 35 | 3 67 45 64 17 44 19 50 18 51 9 Regions Visited 10 Branch Regions . Pre-discovered Areas 1 | . . 1 . . . . . . . . Known Exits Taken 6 | . 1 1 1 1 . 1 . 1 . . Unknown Exits Taken 1 | 1 . . . . . . . . . . Scrap Searched . | . . . . . . . . . . . Spaces Dug 3 | . 1 . 1 . . 1 . . . . Terrain Destroyed 201 | . 1 . 1 . 12 3 36 57 85 6 Melee 2 | . . . 1 . . 1 . . . . Projectile 14 | . 1 . . . 1 2 . 1 3 6 AOE 183 | . . . . . 11 . 36 56 80 . Terrain Rammed . | . . . . . . . . . . . Walls Destroyed . | . . . . . . . . . . . Machines Disabled . | . . . . . . . . . . . Actions | -11 -10 -9 -8 -7 -7 -7 -7 -6 -6 -6 --------- Run | Yrd Mat Mat Mat Fac Gar Fac Gar Fac Gar Fac Total 7526 | 64 582 728 1082 656 871 699 884 954 703 303 Wait 360 | . 29 9 49 6 22 3 85 123 30 4 Move 5877 | 50 488 563 831 588 693 605 629 676 516 238 Hop . | . . . . . . . . . . . Pick Up 135 | 5 12 20 16 8 19 7 15 6 25 2 Fast Attach 58 | 7 . 4 3 . 6 7 7 14 6 4 Attach 48 | . . 3 5 2 11 . 5 9 8 5 Detach 7 | . . . 1 . . 2 . 3 . 1 Swap 153 | . 10 16 21 12 19 13 20 17 19 6 Drop 156 | . 7 28 30 11 14 18 12 9 18 9 Fire 652 | 2 36 85 125 25 65 38 90 94 60 32 Melee 42 | . . . 1 4 7 1 17 . 10 2 Ram . | . . . . . . . . . . . Kick 1 | . . . . . . . . 1 . . Crush 1 | . . . . . . . . 1 . . Escape Stasis 31 | . . . . . 15 5 . . 11 . Rewire 5 | . . . . . . . 4 1 . . Trap . | . . . . . . . . . . . Miscellaneous . | . . . . . . . . . . . Route ------- -11/Scrapyard -10/Materials (discovered 3 exits: *Mat / *Min x2) -9/Materials (discovered 4 exits: *Mat x3 / *Min) -8/Materials (discovered 2 exits: *Fac x2) -7/Factory -7/Garrison -7/Factory -7/Garrison -6/Factory -6/Garrison -6/Factory (discovered 4 exits: Fac x4) History --------- Turn | Location | Event 17 | -11/Scrapyard | Discovered new exit (range 16) 67 | -11/Scrapyard | Entered Materials 68 | -10/Materials | Met a group of wandering Federalists 196 | -10/Materials | Discovered new exit (range 15) 342 | -10/Materials | Build established: Mutant 350 | -10/Materials | Discovered new exit (range 16) 390 | -10/Materials | Discovered new exit (range 16) 446 | -10/Materials | Identified exit to Mines 744 | -10/Materials | Identified exit to Materials 746 | -10/Materials | Entered another Materials area 746 | -9/Materials | Evolved 2 slots: Utility x1, Weapon x1 1206 | -9/Materials | Identified exit to Materials 1231 | -9/Materials | Build established: Scavenger-Skirmisher 1493 | -9/Materials | Discovered new exit (range 12) 1583 | -9/Materials | Build established: Scavenger-Tank 1676 | -9/Materials | Central database locked down 1714 | -9/Materials | Identified exit to Mines 2038 | -9/Materials | Entered another Materials area 2038 | -8/Materials | Evolved 2 slots: Propulsion x1, Utility x1 2632 | -8/Materials | Discovered new exit (range 14) 2692 | -8/Materials | Identified exit to Factory 3458 | -8/Materials | Build established: Scavenger-Gunner 3816 | -8/Materials | Discovered exit to Factory (range 16) 3867 | -8/Materials | Entered Factory 3867 | -7/Factory | Evolved 2 slots: Propulsion x1, Utility x1 4792 | -7/Factory | Build established: Scavenger-Mutant 4946 | -7/Factory | Identified exit to Garrison 4948 | -7/Factory | Entered Garrison 4965 | -7/Garrison | Triggered checkpoint 5119 | -7/Garrison | Lost 3 parts (1p2u) 5170 | -7/Garrison | Triggered checkpoint 5274 | -7/Garrison | Build established: Scavenger-Gunner 5400 | -7/Garrison | Installed Relay Interface Framework 5483 | -7/Garrison | Triggered checkpoint 5642 | -7/Garrison | Destroyed 7 combat bots 5642 | -7/Garrison | Lost 3 parts (1n2u) 5846 | -7/Garrison | Discovered new exit (range 13) 5902 | -7/Garrison | Triggered checkpoint 5972 | -7/Garrison | Garrison Relay disabled 6231 | -7/Garrison | Garrison Relay disabled 6474 | -7/Garrison | Entered Factory 6533 | -7/Factory | Build established: Bothacker-Mutant 7046 | -7/Factory | Build established: Bothacker-Gunner 7706 | -7/Factory | Identified exit to Garrison 7708 | -7/Factory | Entered Garrison 7708 | -7/Garrison | Accompanied by 2 allies 7745 | -7/Garrison | P-60 Hacker assimilated allied Guardian 4a 7836 | -7/Garrison | Triggered checkpoint 7924 | -7/Garrison | Core integrity fell below 50% 7935 | -7/Garrison | Lost 3 allies 7987 | -7/Garrison | Garrison Relay disabled 8209 | -7/Garrison | Triggered checkpoint 8292 | -7/Garrison | Triggered checkpoint 8319 | -7/Garrison | Build established: Bothacker-Tank 8449 | -7/Garrison | Triggered checkpoint 8460 | -7/Garrison | Triggered checkpoint 8510 | -7/Garrison | Destroyed 7 combat bots 8688 | -7/Garrison | Triggered checkpoint 8732 | -7/Garrison | Expanded RIF knowledge: Hotswap 8806 | -7/Garrison | Garrison Relay disabled 8956 | -7/Garrison | Discovered new exit (range 14) 9112 | -7/Garrison | Build established: Bothacker-Mutant 9150 | -7/Garrison | Entered Factory 9150 | -6/Factory | Accompanied by 3 allies 9150 | -6/Factory | Evolved 2 slots: Utility x2 9956 | -6/Factory | Lost 3 allies 10099 | -6/Factory | Lost 4 parts (1p2n1w) 10204 | -6/Factory | Lost 5 parts (1p2n1u1w) 10279 | -6/Factory | Garrison activated, responded to threat 10345 | -6/Factory | Build established: Bothacker-Gunner 10652 | -6/Factory | Lost 3 parts (1n2w) 10654 | -6/Factory | Identified exit to Garrison 10661 | -6/Factory | Entered Garrison 10661 | -6/Garrison | Accompanied by 1 ally 10803 | -6/Garrison | Phase Generator disabled 11115 | -6/Garrison | Triggered checkpoint 11159 | -6/Garrison | Garrison Relay disabled 11421 | -6/Garrison | Destroyed 7 combat bots 11435 | -6/Garrison | Triggered checkpoint 11527 | -6/Garrison | Lost 4 parts (1p1n1u1w) 11537 | -6/Garrison | Triggered checkpoint 11610 | -6/Garrison | Discovered new exit (range 15) 11660 | -6/Garrison | Expanded RIF knowledge: Patrol Navigation 11768 | -6/Garrison | Garrison Relay disabled 11867 | -6/Garrison | Entered Factory 11988 | -6/Factory | Identified exit to Factory 12264 | -6/Factory | Assembled infested ambush trap array 12270 | -6/Factory | Build established: Scavenger-Assassin 12305 | -6/Factory | System corruption reached 10% 12312 | -6/Factory | Core integrity fell below 50% 12326 | -6/Factory | Lost 3 allies 12334 | -6/Factory | Destroyed 7 combat bots 12352 | -6/Factory | Core integrity fell below 20% 12356 | -6/Factory | Destroyed by D-53 Grenadier with Mini Grenade Launcher Last Messages --------------- 12324_ as-49452 destroyed. 12325_ U-05 Engineer lays Concrete. 12326_ as-42416 destroyed. 12327_ Hvy. Plasma Cannon destroyed. 12328_ U-05 Engineer lays Concrete. 12329_ ALERT: Cargo convoy en route, clear transfer corridor. 12331_ Carbon-fiber Leg destroyed. 12332_ U-05 Engineer builds a Wall. 12333_ I/PXZC Q|BR YU7GD4&6GRDJ 12333_ Flexi-carbon Leg destroyed. 12335_ Carbon-fiber Leg destroyed. 12338_ The unstable cave ceiling collapses. 12338_ K-01 Serf collects debris. 12338_ U-05 Engineer builds a Wall. 12340_ The unstable cave ceiling collapses. 12345_ Lgt. Antimatter Reactor destroyed. 12348_ Dropped Hcp. Storage Unit. 12350_ The unstable cave ceiling collapses. 12354_ U-05 Engineer builds a Wall. 12356_ The unstable cave ceiling collapses. Map ----- +----------------------------------------------------+ | ?????????????????????????????????????? # # | | ?????????????????????????????#?#????####?# # | | ??????????????????????????##??####?#?##### # | | ????????????????????????????#???#?###?#### # | | ?????????????????????????################# # | | ???????????????????? ??? # | | ???????????????? ???? # | | ?????????????? " " " ** # | | ???????????? ? " " " ** # | | ?????????? ?? ? " " " # | | ???????? ?? " " " # | | ??????? ?? ? " " " # | | ??????? ???###?##?# " " " # | | ?????? #?###?#???# " " " # | | ?????? ?#?#####?## " " " | | ??????? ??###???#?# " " " | | ??????? ##?###?#### = !!! | | ????????? ####?###### !|!! !! | | ??????????? #####?##### =*%%!= !! | | ????????????? #?#####?### %=%*% = | | ??????????????? u########### %*=![ | | ?????????????#### ### # ## %** # | | ?????????????# # # = !"= # | | ?????????????# # # "Y" # | | ?????????????# ! # """ # | | ?????????????# @d # | | ?????????????# = d # # | | ???????? + ! # "##" | | ?????? # # # ## ##### | | ?????? ?????# ######### | | ?????????????# k ##"" " ######### | | ?????????????# ##"" " #?###??## | | ?????????????# ##"T " #??###?## | | ?????????????# ##"" " ##?###### | | ?????????????###############"" " ######### | | ?????????????????????#?#???# " + ?? # | | ????????????????????#???##?# " #??###??# # | | ?????????????????????#??##?# ?" ##?####?# # | | ??????????????????????????#?? ?"?#?##?#### # | | ???????????????????????????# ???############+##+# | | ?????????????????????????????? ????# ? ????? ? | | ?????????????????????????????#??#???#???????? ?? | | ????????????????????????????????????????????? ??? | | ????????????????????????????????????????????"?"??? | | ??????????????????????????????????????????????""? | | ???????????????????????????????????????????????"? | | ???????????????????????????????????????????????? ? | | ???????????????????????????????????????????????? | | ???????????????????????????????????????????????? ? | | ????????????????????????????????????????????? ? ? | +----------------------------------------------------+ Best States ------------- Heat Dissipation 56 Energy Generation 23 Energy Capacity 340 Matter Stores 300 Matter Capacity 300 Sight Range 22 Terrain Scan Range 20 Terrain Scan Density 210 Jamming Range 12 Armor Coverage 300 Propulsion Shielding 33 Evasion (%) 55 Targeting Accuracy 6 Target Analysis 5 Core Analysis 6 Armor Integrity Analysis 30 Recoil Reduction 4 Kinecelleration 30 Offensive Hacking 20 Relay Coupler Types 3 Relay Coupler Value 72 Item Schematics ----------------- Huge Storage Unit | -9/Materials | Hacked Imp. Flight Unit | -9/Materials | Scanalyzed Robot Schematics ------------------ None Fabricated ------------ Nothing Repaired ---------- Nothing Studied --------- Lgt. Treads | -9/Materials | Hacked Assault Rifle | -9/Materials | Hacked Assault Cannon | -8/Materials | Hacked Imp. Treads | -8/Materials | Hacked Alien Tech Used ----------------- None Achievements -------------- Hack The Planet Infiltrator Challenges ------------ None Game ------ Seed ReactionTargetingLoader Manual? 0 Play Time 02:38:12 Cumulative 157.8 hours Start 2026.09.23 @ 07:36:59 End 2026.09.23 @ 22:54:31 Sessions 6 Manual Loads 0 Difficulty Rogue Special Mode None Game No. 125 Rogue 125 Adventurer 0 Explorer 0 Win Type - Total 2 Types 2/0/0/0/0/0/0/0/0/0 Lore% 22 Gallery% 47 Achievement% 32 Wizard Run 0 Options --------- Layout 1 ASCII 0 Keyboard 1 Movement Numpad Keybinds 0 Fullscreen 1 Font 32/SmallcapsGlow Map View 77x35 Zoom Use 0% Tactical HUD 1 Map Filters NONE Filters NONE Steam 1 RUN: a3192f43-28f8-4d70-81f6-29636e6d2124